bitfinex/quotes_BTCUSD_20241229
["timestamp","ask_amount","ask_price","bid_price","bid_amount"]
[1735502496857,0.09878837,93816.0,93800.0,0.0002899]
[1735502497013,0.11947406,93816.0,93801.0,0.03337561]
[1735502497212,0.11947406,93816.0,93802.0,0.03337561]
[1735502497419,0.30046038,93816.0,93800.0,0.0002899]
[1735502497622,0.10398632,93815.0,93800.0,0.0002899]
[1735502497825,0.11144483,93814.0,93800.0,0.0002899]
[1735502498040,0.10398632,93813.0,93800.0,0.0002899]
[1735502498465,0.09570307,93812.0,93800.0,0.0002899]
[1735502498665,0.10398632,93811.0,93800.0,0.0002899]
[1735502499540,0.09570307,93808.0,93800.0,0.0002899]
[1735502499744,0.16862649,93807.0,93800.0,0.0002899]
[1735502500100,0.18534858,93807.0,93800.0,0.0002899]
[1735502500850,0.03455321,93807.0,93800.0,0.0002899]
[1735502501168,0.03447859,93807.0,93800.0,0.0002899]
[1735502501386,0.03447859,93807.0,93800.0,0.0012899]
[1735502501725,0.03447859,93807.0,93800.0,0.0002899]
[1735502501921,0.03447859,93807.0,93800.0,0.0042899]
[1735502502380,0.03447859,93807.0,93800.0,0.0012899]
[1735502502807,0.03447859,93807.0,93800.0,0.0042899]
[1735502503417,0.01780153,93806.0,93800.0,0.0032899]
[1735502503910,0.01780153,93806.0,93800.0,0.0042899]
[1735502504278,0.01780153,93806.0,93800.0,0.0032899]
[1735502504474,0.01780153,93806.0,93800.0,0.0002899]
[1735502504686,0.01780153,93806.0,93800.0,0.0012899]
[1735502504893,0.01790948,93805.0,93800.0,0.0042899]
[1735502506151,0.01790948,93805.0,93800.0,0.0012899]
[1735502506575,0.09937366,93801.0,93800.0,0.0032899]
[1735502506772,0.05277366,93797.0,93771.0,0.0001706]
[1735502506963,0.05277366,93789.0,93771.0,0.00067938]
[1735502507199,0.10398632,93788.0,93771.0,0.00067938]
[1735502507552,0.15675998,93788.0,93771.0,0.00067938]
[1735502507753,0.0466,93784.0,93771.0,0.00067938]
[1735502507961,0.13192232,93783.0,93771.0,0.00067938]
[1735502509253,0.01672638,93781.0,93771.0,0.00067938]
[1735502509445,0.10398632,93780.0,93771.0,0.00067938]
[1735502511439,0.10598632,93780.0,93771.0,0.00067938]
[1735502511849,0.2065359,93780.0,93771.0,0.00067938]
[1735502512051,0.06858394,93779.0,93771.0,0.00067938]
[1735502512216,0.10398632,93778.0,93771.0,0.00067938]
[1735502513474,0.10698632,93778.0,93771.0,0.00067938]
[1735502514859,0.10898632,93778.0,93771.0,0.00067938]
[1735502517404,0.01672666,93777.0,93771.0,0.00067938]
[1735502517581,0.10398632,93776.0,93771.0,0.00067938]
[1735502519361,0.10698632,93776.0,93771.0,0.00067938]
[1735502519562,0.10398632,93776.0,93771.0,0.00067938]
[1735502519922,0.10598632,93776.0,93771.0,0.00067938]
[1735502520564,0.002,93776.0,93772.0,0.082]
[1735502520727,0.01672666,93777.0,93772.0,0.082]
[1735502520930,0.01672666,93777.0,93772.0,0.06616729]
[1735502521556,0.01672666,93777.0,93771.0,0.00067938]
[1735502522075,0.10398632,93776.0,93771.0,0.00067938]
[1735502522932,0.12395762,93776.0,93771.0,0.00067938]
[1735502523720,0.01672666,93777.0,93771.0,0.00067938]
[1735502524252,0.10398632,93776.0,93771.0,0.00067938]
[1735502526066,0.079,93775.0,93771.0,0.00067938]
[1735502526213,0.10398632,93774.0,93771.0,0.00067938]
[1735502527463,0.12071332,93774.0,93771.0,0.00067938]
[1735502527719,0.02451986,93773.0,93771.0,0.00067938]
[1735502527924,0.10398632,93772.0,93771.0,0.00067938]
[1735502529397,0.079,93762.0,93744.0,0.082]
[1735502529599,0.14938632,93761.0,93744.0,0.07463666]
[1735502530004,0.01672921,93757.0,93744.0,0.07463666]
[1735502530262,0.13377524,93756.0,93744.0,0.06975702]
[1735502530634,0.13377524,93756.0,93744.0,0.06440346]
[1735502530839,0.05277366,93752.0,93730.0,0.00032331]
[1735502531042,0.10398632,93751.0,93730.0,0.00032331]
[1735502531253,0.02032781,93750.0,93730.0,0.00032331]
[1735502531480,0.10398632,93749.0,93730.0,0.00032331]
[1735502531691,0.01673132,93746.0,93730.0,0.00032331]
[1735502531913,0.10398632,93745.0,93730.0,0.00032331]
[1735502533347,0.10798632,93745.0,93730.0,0.00032331]
[1735502533552,0.01978191,93744.0,93730.0,0.00032331]
[1735502533725,0.10398632,93743.0,93730.0,0.00032331]
[1735502536253,0.10698632,93743.0,93730.0,0.00032331]
[1735502536892,0.10798632,93743.0,93730.0,0.00032331]
[1735502540743,0.387,93742.0,93730.0,0.00032331]
[1735502540956,0.05277366,93733.0,93730.0,0.00032331]
[1735502541153,0.13367366,93731.0,93730.0,0.00032331]
[1735502541357,2.06665998,93731.0,93730.0,0.00032331]
[1735502541569,1.54265998,93731.0,93730.0,0.00032331]
[1735502541765,0.9323961,93731.0,93730.0,0.00032331]
[1735502541968,1.02563571,93731.0,93730.0,0.00032331]
[1735502542622,1.04704571,93731.0,93730.0,0.00032331]
[1735502542962,1.02563571,93731.0,93730.0,0.00032331]
[1735502544520,1.02963571,93731.0,93730.0,0.00032331]
[1735502544777,0.1,93719.0,93701.0,0.11857018]
[1735502544986,0.1,93719.0,93613.0,0.54688949]
[1735502544987,0.21926369,93718.0,93707.0,5.421e-05]
[1735502545404,0.1,93715.0,93707.0,5.421e-05]
[1735502545614,0.10398632,93714.0,93707.0,5.421e-05]
[1735502546286,0.10398632,93714.0,93695.0,0.07095421]
[1735502546495,0.10398632,93714.0,93695.0,0.07146363]
[1735502546717,0.03529374,93713.0,93695.0,0.07146363]
[1735502546941,0.10398632,93712.0,93695.0,0.07146363]
[1735502547576,0.10398632,93712.0,93696.0,0.03320639]
[1735502547770,0.07720438,93712.0,93697.0,0.03320639]
[1735502547939,0.07720438,93712.0,93698.0,0.03320639]
[1735502548152,0.02885492,93711.0,93695.0,0.07146363]
[1735502548362,0.002,93712.0,93696.0,0.03320361]
[1735502548578,0.1227254,93712.0,93697.0,0.03320361]
[1735502548783,0.1227254,93712.0,93698.0,0.03320361]
[1735502548980,0.01873908,93712.0,93699.0,0.03320361]
[1735502549273,0.01873908,93712.0,93701.0,0.0805]
[1735502549478,0.01873908,93712.0,93702.0,0.03320361]
[1735502549686,0.02449035,93712.0,93703.0,0.03320361]
[1735502550010,0.02649035,93712.0,93704.0,0.03320361]
[1735502550213,0.03149035,93712.0,93701.0,0.0805]
[1735502550522,0.01673908,93712.0,93702.0,0.03319105]
[1735502550725,0.01673908,93712.0,93703.0,0.03319105]
[1735502550977,0.01773908,93712.0,93701.0,0.0805]
[1735502551150,0.01673908,93712.0,93702.0,0.0331884]
[1735502551368,0.1,93725.0,93703.0,0.0332738]
[1735502551568,0.10398632,93724.0,93705.0,0.127]
[1735502551767,0.01673715,93720.0,93706.0,0.1136884]
[1735502552115,0.01673715,93720.0,93707.0,0.0331884]
[1735502552255,0.01673715,93720.0,93708.0,0.0331884]
[1735502552450,0.01734971,93719.0,93709.0,0.0331884]
[1735502552657,0.001,93712.0,93710.0,0.0331884]
[1735502552881,0.01734971,93719.0,93711.0,0.0331884]
[1735502553215,0.01673715,93720.0,93706.0,0.0805]
[1735502553397,0.003,93720.0,93706.0,0.0805]
[1735502553726,0.07404705,93741.0,93706.0,0.0805]
[1735502553926,0.09423885,93740.0,93706.0,0.0805]
[1735502554504,0.003,93720.0,93706.0,0.0805]
[1735502554705,0.004,93720.0,93706.0,0.0805]
[1735502556054,0.09423885,93740.0,93706.0,0.0805]
[1735502556181,0.02169567,93739.0,93706.0,0.0805]
[1735502556384,0.10398632,93738.0,93706.0,0.0805]
[1735502556752,0.01673637,93732.0,93706.0,0.0805]
[1735502556871,0.001,93720.0,93706.0,0.0805]
[1735502557309,0.10398632,93732.0,93706.0,0.0805]
[1735502557513,0.01039863,93731.0,93706.0,0.0805]
[1735502559493,0.001,93720.0,93706.0,0.0805]
[1735502559897,0.01673635,93725.0,93706.0,0.0805]
[1735502560854,0.001,93720.0,93706.0,0.0805]
[1735502561076,0.01673635,93725.0,93706.0,0.0805]
[1735502561335,0.02984848,93725.0,93706.0,0.0805]
[1735502562693,0.03301908,93725.0,93706.0,0.0805]
[1735502562895,0.03001908,93725.0,93706.0,0.0805]
[1735502563637,0.03201908,93725.0,93706.0,0.0805]
[1735502563936,0.03601908,93725.0,93706.0,0.0805]
[1735502564142,0.01928273,93725.0,93706.0,0.0805]
[1735502564338,0.01728273,93725.0,93706.0,0.0805]
[1735502564972,0.01828273,93725.0,93706.0,0.0805]
[1735502567429,0.01673659,93723.0,93706.0,0.0805]
[1735502568249,0.05350193,93722.0,93706.0,0.0805]
[1735502570931,0.05650193,93722.0,93706.0,0.0805]
[1735502571536,0.07323884,93722.0,93706.0,0.0805]
[1735502571738,0.07423884,93722.0,93706.0,0.0805]
[1735502574170,0.05750193,93722.0,93706.0,0.0805]
[1735502574445,0.05707847,93721.0,93706.0,0.0805]
[1735502574647,0.05707847,93721.0,93706.0,0.0805853]
[1735502575774,0.05807847,93721.0,93706.0,0.0805853]
[1735502576364,0.10398632,93720.0,93706.0,0.0805853]
[1735502576565,0.10398632,93720.0,93706.0,8.53e-05]
[1735502576773,0.07961475,93719.0,93706.0,8.53e-05]
[1735502577015,0.10398632,93718.0,93706.0,8.53e-05]
[1735502577372,0.1127,93716.0,93695.0,0.00050942]
[1735502577580,0.1127,93711.0,93695.0,0.00050942]
[1735502577788,0.1127,93709.0,93695.0,0.00050942]
[1735502577990,0.1127,93707.0,93695.0,0.00050942]
[1735502578199,2.84398632,93706.0,93695.0,0.00050942]
[1735502578550,0.0200665,93705.0,93695.0,0.00050942]
[1735502578761,0.12072737,93704.0,93696.0,0.0826]
[1735502578960,0.19173071,93697.0,93696.0,0.0826]
[1735502579694,0.21616765,93704.0,93696.0,0.0826]
[1735502580170,0.05510588,93703.0,93696.0,0.0826]
[1735502580328,0.1590922,93703.0,93696.0,0.0826]
[1735502581381,0.1610922,93703.0,93696.0,0.0826]
[1735502581986,0.1610922,93703.0,93695.0,0.00050942]
[1735502582963,0.09544028,93700.0,93695.0,0.00050942]
[1735502583285,0.02732735,93699.0,93695.0,0.00050942]
[1735502584425,0.14316042,93697.0,93695.0,0.00050942]
[1735502585440,0.14316042,93696.0,93695.0,0.00050942]
[1735502586508,0.02732735,93699.0,93695.0,0.00050942]
[1735502586509,0.14316042,93697.0,93695.0,0.00050942]
[1735502586914,0.14316042,93697.0,93695.0,0.00059472]
[1735502587119,0.04674009,93696.0,93695.0,0.00059472]
[1735502587964,0.11300134,93698.0,93695.0,0.00059472]
[1735502588139,0.10398632,93696.0,93695.0,0.00059472]
[1735502588349,1.14272786,93696.0,93695.0,0.00059472]
[1735502588550,1.08972786,93696.0,93695.0,0.00059472]
[1735502588783,0.83171418,93696.0,93695.0,0.00059472]
[1735502589340,0.83271418,93696.0,93695.0,0.00059472]
[1735502589713,0.83171418,93696.0,93695.0,0.00059472]
[1735502590236,0.84071418,93696.0,93695.0,0.00059472]
[1735502590451,0.83371418,93696.0,93695.0,0.00059472]
[1735502590880,0.84071418,93696.0,93695.0,0.00059472]
[1735502591750,0.83871418,93696.0,93695.0,0.00059472]
[1735502591961,0.12772786,93696.0,93695.0,0.00059472]
[1735502592161,0.13072786,93696.0,93695.0,0.00059472]
[1735502592727,0.02674154,93696.0,93695.0,0.00059472]
[1735502594127,0.01,93696.0,93695.0,0.00059472]
[1735502595116,1.202698,93696.0,93695.0,0.00059472]
[1735502595720,1.30668432,93696.0,93695.0,0.00059472]
[1735502596373,0.652994,93696.0,93695.0,0.00059472]
[1735502597835,0.597258,93696.0,93695.0,0.00059472]
[1735502598609,0.61399923,93696.0,93695.0,0.00059472]
[1735502598838,0.02674123,93696.0,93695.0,0.00059472]
[1735502599183,0.01,93696.0,93695.0,0.12309472]
[1735502600012,0.003,93696.0,93695.0,0.12309472]
[1735502600212,0.0001706,93704.0,93696.0,0.0759]
[1735502603557,0.0011706,93704.0,93696.0,0.0759]
[1735502603738,0.0001706,93704.0,93696.0,0.0759]
[1735502604183,0.0011706,93704.0,93696.0,0.0759]
[1735502607186,0.0001706,93704.0,93696.0,0.0759]
[1735502607390,0.01674011,93703.0,93696.0,0.0759]
[1735502612050,0.0001706,93704.0,93698.0,0.1829]
[1735502612229,0.0001706,93704.0,93700.0,0.0829]
[1735502612424,0.0001706,93704.0,93703.0,0.1]
[1735502612676,0.0001706,93704.0,93703.0,0.28688632]
[1735502614457,0.0001706,93704.0,93703.0,0.33488632]
[1735502614629,0.0001706,93704.0,93703.0,0.37837495]
[1735502614831,0.09538625,93724.0,93703.0,0.24747495]
[1735502615038,0.09538625,93724.0,93718.0,0.0829]
[1735502615235,0.09538625,93724.0,93720.0,0.0829]
[1735502615452,0.17082556,93725.0,93721.0,0.18688632]
[1735502615705,0.17082556,93725.0,93722.0,0.11638863]
[1735502615944,0.17082556,93725.0,93723.0,0.10398632]
[1735502616132,0.17082556,93725.0,93724.0,0.0829]
[1735502616256,0.17082556,93725.0,93724.0,0.33488632]
[1735502616670,0.17182556,93725.0,93724.0,0.33488632]
[1735502616899,0.17182556,93725.0,93724.0,0.38172382]
[1735502617097,0.17082556,93725.0,93724.0,0.38172382]
[1735502617298,0.17082556,93725.0,93724.0,0.3817747]
[1735502617499,0.17182556,93725.0,93724.0,0.3817747]
[1735502617831,0.17282556,93725.0,93724.0,0.3817747]
[1735502618045,0.17182556,93725.0,93724.0,0.3817747]
[1735502618600,0.17182556,93725.0,93724.0,0.3349372]
[1735502619222,0.17082556,93725.0,93724.0,0.3349372]
[1735502619633,0.17282556,93725.0,93724.0,0.3349372]
[1735502619845,0.17182556,93725.0,93724.0,0.3349372]
[1735502620024,0.17082556,93725.0,93724.0,0.3349372]
[1735502620224,0.17182556,93725.0,93724.0,0.3349372]
[1735502620454,0.17282556,93725.0,93724.0,0.3349372]
[1735502623287,0.17299616,93725.0,93724.0,0.3349372]
[1735502624088,0.17299616,93725.0,93724.0,0.37843092]
[1735502625087,0.17299616,93725.0,93724.0,0.3349372]
[1735502626053,0.17099616,93725.0,93724.0,0.3349372]
[1735502626388,0.17199616,93725.0,93724.0,0.3349372]
[1735502626637,0.17299616,93725.0,93724.0,0.3349372]
[1735502628251,0.17299616,93725.0,93724.0,0.2349372]
[1735502629070,0.17199616,93725.0,93724.0,0.2349372]
[1735502629454,0.17099616,93725.0,93724.0,0.27843092]
[1735502629653,0.17199616,93725.0,93724.0,0.27843092]
[1735502629827,0.17299616,93725.0,93724.0,0.27843092]
[1735502630226,0.17099616,93725.0,93724.0,0.27843092]
[1735502630433,0.17199616,93725.0,93724.0,0.2349372]
[1735502630851,0.17199616,93725.0,93724.0,0.1869372]
[1735502631741,0.17299616,93725.0,93724.0,0.1869372]
[1735502633112,0.17299616,93725.0,93724.0,0.2869372]
[1735502634561,0.17289663,93725.0,93724.0,0.2869372]
[1735502635860,0.17289663,93725.0,93724.0,0.2870225]
[1735502636872,0.11936077,93725.0,93724.0,0.2870225]
[1735502637073,0.11936077,93725.0,93724.0,0.33048475]
[1735502638569,0.04384746,93781.0,93726.0,0.0766]
[1735502638779,7e-05,93906.0,93725.0,0.0476]
[1735502638780,3.54271932,93780.0,93728.0,0.0766]
[1735502638988,2.548733,93779.0,93730.0,0.0827]
[1735502639147,0.10398632,93778.0,93732.0,0.0827]
[1735502639352,2.26051332,93777.0,93733.0,0.13265495]
[1735502639584,2.25944332,93776.0,93733.0,0.13265495]
[1735502639913,1.758213,93775.0,93733.0,0.13265495]
[1735502640115,0.10398632,93774.0,93733.0,0.13265495]
[1735502640324,0.10072,93773.0,93744.0,0.1]
[1735502640556,0.10398632,93778.0,93745.0,0.20984632]
[1735502640778,0.76360732,93778.0,93745.0,0.20984632]
[1735502640981,0.659621,93777.0,93745.0,0.20984632]
[1735502641162,0.659621,93777.0,93746.0,0.0827]
[1735502641357,0.009,93776.0,93747.0,0.10398632]
[1735502641499,0.477601,93776.0,93747.0,0.10398632]
[1735502642113,0.0479,93774.0,93746.0,0.0827]
[1735502642251,0.0721,93772.0,93746.0,0.0827]
[1735502642458,1.65897964,93771.0,93746.0,0.0827]
[1735502642653,1.196156,93770.0,93746.0,0.0827]
[1735502642860,0.10398632,93769.0,93739.0,0.0827]
[1735502643187,2.035665,93768.0,93739.0,0.0827]
[1735502643374,0.0721,93766.0,93739.0,0.0827]
[1735502643571,2.75670564,93765.0,93739.0,0.0827]
[1735502643837,2.548733,93764.0,93739.0,0.0827]
[1735502644049,0.10398632,93763.0,93739.0,0.0827]
[1735502644225,1.42119732,93763.0,93739.0,0.0827]
[1735502644461,1.321496,93762.0,93739.0,0.0827]
[1735502644630,0.17297687,93761.0,93739.0,0.0827]
[1735502645174,0.10398632,93761.0,93739.0,0.0827]
[1735502646204,0.10598632,93761.0,93739.0,0.07301964]
[1735502647367,0.11098632,93761.0,93739.0,0.07301964]
[1735502647551,0.170347,93760.0,93739.0,0.07301964]
[1735502647748,0.13932965,93759.0,93739.0,0.07301964]
[1735502647992,0.13932965,93759.0,93739.0,0.07319024]
[1735502648220,1.197346,93758.0,93739.0,0.07319024]
[1735502648491,0.181056,93757.0,93739.0,0.07319024]
[1735502648637,0.554799,93758.0,93739.0,0.07319024]
[1735502649284,0.004,93759.0,93744.0,0.1]
[1735502649507,0.004,93759.0,93745.0,0.10398632]
[1735502649696,0.001,93757.0,93746.0,0.0804]
[1735502649891,0.001,93757.0,93748.0,0.0804]
[1735502650092,0.001,93757.0,93749.0,0.18438632]
[1735502650345,0.001,93757.0,93751.0,0.0804]
[1735502650631,0.001,93757.0,93753.0,0.0804]
[1735502650831,0.001,93757.0,93753.0,0.18438632]
[1735502651371,8.53e-05,93776.0,93753.0,0.18438632]
[1735502651574,0.001,93759.0,93753.0,0.18438632]
[1735502651819,0.001,93757.0,93753.0,0.18438632]
[1735502652029,8.53e-05,93776.0,93753.0,0.18438632]
[1735502652854,8.53e-05,93776.0,93753.0,0.21750495]
[1735502653459,0.001,93757.0,93753.0,0.21750495]
[1735502653691,8.53e-05,93776.0,93753.0,0.21750495]
[1735502653901,0.0030853,93776.0,93753.0,0.21750495]
[1735502654326,8.53e-05,93776.0,93753.0,0.21750495]
[1735502654518,8.53e-05,93776.0,93754.0,0.03643049]
[1735502654842,0.0010853,93776.0,93754.0,0.03643049]
[1735502654959,0.001,93757.0,93754.0,0.03643049]
[1735502655156,0.001,93757.0,93753.0,0.18438632]
[1735502655366,8.53e-05,93776.0,93753.0,0.18438632]
[1735502655560,0.0010853,93776.0,93753.0,0.18438632]
[1735502656068,0.0010853,93776.0,93724.0,8.53e-05]
[1735502656069,8.53e-05,93776.0,93763.0,0.1]
[1735502656399,8.53e-05,93776.0,93765.0,0.0804]
[1735502656818,0.0030853,93776.0,93765.0,0.0804]
[1735502657057,8.53e-05,93776.0,93765.0,0.0804]
[1735502657969,0.0010853,93776.0,93765.0,0.0804]
[1735502659721,8.53e-05,93776.0,93765.0,0.0804]
[1735502660650,0.27429832,93775.0,93758.0,0.0804]
[1735502660869,0.10398632,93775.0,93751.0,0.0804]
[1735502661434,0.00961978,93776.0,93751.0,0.0804]
[1735502661645,0.09525952,93772.0,93751.0,0.0804]
[1735502662752,0.09525952,93770.0,93751.0,0.0804]
[1735502663859,0.09525952,93769.0,93751.0,0.0804]
[1735502665001,0.09525952,93768.0,93751.0,0.0804]
[1735502666035,0.09525952,93766.0,93751.0,0.0804]
[1735502666418,0.507643,93765.0,93748.0,5.088e-05]
[1735502667047,0.09525952,93761.0,93748.0,5.088e-05]
[1735502668325,0.09525952,93757.0,93748.0,5.088e-05]
[1735502669154,0.09525952,93759.0,93748.0,5.088e-05]
[1735502671971,0.09625952,93759.0,93748.0,5.088e-05]
[1735502674520,0.09525952,93758.0,93748.0,5.088e-05]
[1735502675321,0.09525952,93758.0,93749.0,0.0795]
[1735502676405,0.001,93759.0,93749.0,0.0795]
[1735502677760,0.09525952,93765.0,93749.0,0.0795]
[1735502678159,0.001,93758.0,93749.0,0.0795]
[1735502678561,0.09525952,93765.0,93749.0,0.0795]
[1735502678773,0.09525952,93765.0,93750.0,0.0795]
[1735502678995,0.001,93759.0,93750.0,0.0795]
[1735502679441,0.09525952,93764.0,93750.0,0.0795]
[1735502679847,0.001,93758.0,93750.0,0.0795]
[1735502680920,0.08955077,93764.0,93750.0,0.0795]
[1735502681257,0.08955077,93764.0,93752.0,0.0795]
[1735502682897,0.08955077,93764.0,93752.0,0.0805]
[1735502685881,0.14308437,93769.0,93752.0,0.0805]
[1735502686282,8.53e-05,93764.0,93752.0,0.0805]
[1735502686575,8.53e-05,93764.0,93752.0,0.10365078]
[1735502686778,8.53e-05,93764.0,93752.0,0.0805]
[1735502698654,8.53e-05,93764.0,93752.0,0.0806706]
[1735502700809,0.09565025,93762.0,93752.0,0.0806706]
[1735502701540,0.09565025,93762.0,93752.0,0.0796706]
[1735502701745,0.09573555,93764.0,93752.0,0.0796706]
[1735502701923,0.09573555,93764.0,93754.0,0.077]
[1735502702183,0.09573555,93764.0,93760.0,0.1]
[1735502702407,0.09573555,93764.0,93762.0,0.124]
[1735502702615,0.09573555,93764.0,93763.0,0.18098632]
[1735502702616,8.53e-05,93764.0,93763.0,0.18098632]
[1735502705010,8.53e-05,93764.0,93763.0,0.077]
[1735502705761,8.53e-05,93764.0,93763.0,0.079]
[1735502706345,8.53e-05,93764.0,93763.0,0.18298632]
[1735502708185,8.53e-05,93764.0,93763.0,0.079]
[1735502708426,8.53e-05,93764.0,93763.0,0.002]
[1735502709008,8.53e-05,93764.0,93755.0,0.077]
[1735502709369,8.53e-05,93764.0,93763.0,0.001]
[1735502710615,0.043149,93764.0,93763.0,0.001]
[1735502710824,0.28281239,93764.0,93763.0,0.001]
[1735502711197,0.28229341,93764.0,93752.0,0.0001706]
[1735502711419,0.28229341,93764.0,93763.0,0.001]
[1735502711627,0.23966339,93764.0,93763.0,0.001]
[1735502711823,0.23966339,93764.0,93752.0,0.0001706]
[1735502711957,0.1279,93769.0,93752.0,0.0001706]
[1735502712139,0.006,93764.0,93752.0,0.0001706]
[1735502712346,0.10398632,93768.0,93752.0,0.0001706]
[1735502712553,0.002,93764.0,93752.0,0.0001706]
[1735502712755,0.008,93764.0,93752.0,0.0001706]
[1735502712954,0.006,93764.0,93752.0,0.00790981]
[1735502713155,0.09560571,93753.0,93752.0,0.11189613]
[1735502713359,0.09560571,93753.0,93752.0,0.21189613]
[1735502713560,0.09560571,93753.0,93752.0,0.31189613]
[1735502713788,0.09560571,93753.0,93752.0,0.43589613]
[1735502714526,0.002,93764.0,93756.0,0.0757]
[1735502714725,0.002,93764.0,93757.0,0.10398632]
[1735502714954,0.002,93764.0,93758.0,0.0757]
[1735502715126,0.006,93764.0,93760.0,0.1]
[1735502715363,0.006,93764.0,93761.0,0.10398632]
[1735502715569,0.006,93764.0,93762.0,0.0747]
[1735502715682,0.006,93764.0,93763.0,0.10398632]
[1735502715890,0.09560571,93774.0,93763.0,0.10398632]
[1735502716302,0.002,93764.0,93763.0,0.10398632]
[1735502716916,0.001,93764.0,93763.0,0.10398632]
[1735502719465,8.53e-05,93776.0,93765.0,0.0747]
[1735502720096,8.53e-05,93776.0,93765.0,0.0757]
[1735502720302,8.53e-05,93776.0,93765.0,0.0767]
[1735502721382,8.53e-05,93776.0,93766.0,0.0497]
[1735502722698,8.53e-05,93776.0,93766.0,0.0517]
[1735502722998,8.53e-05,93776.0,93766.0,0.0527]
[1735502725183,8.53e-05,93776.0,93766.0,0.0497]
[1735502725363,8.53e-05,93776.0,93766.0,0.0517]
[1735502725568,0.0095691,93775.0,93766.0,0.0527]
[1735502725967,8.53e-05,93776.0,93766.0,0.0527]
[1735502726512,8.53e-05,93776.0,93766.0,0.0517]
[1735502726673,8.53e-05,93776.0,93766.0,0.0527]
[1735502727703,8.53e-05,93776.0,93766.0,0.0507]
[1735502727902,8.53e-05,93776.0,93766.0,0.0497]
[1735502728110,0.003,93775.0,93766.0,0.0497]
[1735502728260,0.003,93775.0,93766.0,0.0507]
[1735502729011,0.09560571,93775.0,93766.0,0.0497]
[1735502729172,0.09560571,93775.0,93766.0,0.0507]
[1735502729574,0.13883681,93775.0,93766.0,0.0507]
[1735502729754,0.0432311,93775.0,93766.0,0.0507]
[1735502731148,0.0442311,93775.0,93766.0,0.0507]
[1735502731674,0.13983681,93775.0,93766.0,0.0507]
[1735502732013,0.09660571,93775.0,93766.0,0.0507]
[1735502732457,0.09560571,93773.0,93766.0,0.0507]
[1735502733390,0.09660571,93775.0,93766.0,0.0497]
[1735502734555,0.09560571,93775.0,93766.0,0.0497]
[1735502734759,0.17112123,93781.0,93766.0,0.0497]
[1735502734968,0.17112123,93781.0,93767.0,0.0817]
[1735502735372,0.17112123,93781.0,93766.0,0.0507]
[1735502735373,8.53e-05,93775.0,93769.0,0.0817]
[1735502736470,8.53e-05,93775.0,93769.0,0.0827]
[1735502738084,0.02141,93801.0,93769.0,0.0827]
[1735502738265,0.10398632,93800.0,93769.0,0.0827]
[1735502739086,0.10398632,93800.0,93769.0,0.0817]
[1735502739281,0.12449595,93800.0,93770.0,0.02314]
[1735502739481,0.12449595,93800.0,93771.0,0.0771]
[1735502739711,0.13349595,93800.0,93771.0,0.0771]
[1735502739956,0.009,93800.0,93778.0,0.1]
[1735502740117,0.013,93800.0,93779.0,0.18108632]
[1735502741067,0.004,93800.0,93779.0,0.18108632]
[1735502741270,0.00415254,93800.0,93779.0,0.18108632]
[1735502741451,0.00915254,93800.0,93779.0,0.18108632]
[1735502741653,0.00015254,93800.0,93779.0,0.18108632]
[1735502741848,0.00515254,93800.0,93779.0,0.18108632]
[1735502742057,0.01215254,93800.0,93779.0,0.18208632]
[1735502742304,0.00715254,93800.0,93780.0,0.0463]
[1735502742720,0.00915254,93800.0,93780.0,0.0463]
[1735502743264,0.00715254,93800.0,93781.0,0.077]
[1735502744610,0.00915254,93800.0,93781.0,0.077]
[1735502744819,0.00215254,93800.0,93781.0,0.077]
[1735502745067,0.01015254,93800.0,93781.0,0.077]
[1735502745227,0.00815254,93800.0,93781.0,0.077]
[1735502745382,0.00015254,93800.0,93781.0,0.077]
[1735502745589,0.00315254,93800.0,93781.0,0.077]
[1735502747192,0.00315254,93800.0,93782.0,0.077]
[1735502747544,0.00323784,93800.0,93782.0,0.077]
[1735502747984,0.00023784,93800.0,93782.0,0.077]
[1735502748387,0.00323784,93800.0,93782.0,0.077]
[1735502748590,0.00323784,93800.0,93784.0,0.077]
[1735502748815,0.00323784,93800.0,93785.0,0.03276863]
[1735502749118,0.00323784,93800.0,93786.0,0.077]
[1735502749609,0.00023784,93800.0,93786.0,0.077]
[1735502749999,0.00323784,93800.0,93786.0,0.077]
[1735502751388,0.00023784,93800.0,93786.0,0.077]
[1735502751798,0.00323784,93800.0,93786.0,0.077]
[1735502751998,0.00323784,93800.0,93784.0,0.1]
[1735502751999,0.00323784,93800.0,93787.0,0.0467]
[1735502752183,0.00323784,93800.0,93788.0,0.077]
[1735502752970,0.00023784,93800.0,93789.0,0.077]
[1735502753826,0.00023784,93800.0,93791.0,0.077]
[1735502755063,0.00023784,93800.0,93790.0,0.0467]
[1735502755064,0.00323784,93800.0,93790.0,0.0467]
[1735502755248,0.00023784,93800.0,93790.0,0.0467]
[1735502755485,0.00023784,93800.0,93791.0,0.004]
[1735502755722,0.00023784,93800.0,93790.0,0.0467]
[1735502756166,0.00323784,93800.0,93790.0,0.0467]
[1735502756367,0.00323784,93800.0,93791.0,0.002]
[1735502756580,0.00023784,93800.0,93791.0,0.002]
[1735502756921,0.00323784,93800.0,93791.0,0.002]
[1735502758100,0.00323784,93800.0,93790.0,0.0467]
[1735502758483,0.00023784,93800.0,93790.0,0.0467]
[1735502759071,0.00023784,93800.0,93791.0,0.0795]
[1735502759273,0.00323784,93800.0,93797.0,0.1]
[1735502759643,0.00323784,93800.0,93799.0,0.0795]
[1735502759977,0.00023784,93800.0,93799.0,0.0795]
[1735502761738,0.00023784,93800.0,93799.0,0.0815]
[1735502761941,0.00023784,93800.0,93799.0,0.0855]
[1735502762552,0.00023784,93800.0,93799.0,0.38288495]
[1735502762688,0.00023784,93800.0,93799.0,0.48288495]
[1735502763299,8.53e-05,93816.0,93799.0,0.35388495]
[1735502763546,0.00059412,93816.0,93814.0,0.1]
[1735502763756,0.00059412,93816.0,93815.0,0.0795]
[1735502763929,0.00059412,93816.0,93815.0,0.1024]
[1735502764530,0.00059412,93816.0,93815.0,0.2024]
[1735502764755,0.00059412,93816.0,93815.0,0.30638632]
[1735502765198,0.00059412,93816.0,93815.0,0.30538632]
[1735502765410,0.07858664,93843.0,93815.0,0.30538632]
[1735502765582,0.00015255,93832.0,93816.0,0.04548863]
[1735502768244,0.00215255,93832.0,93829.0,0.1]
[1735502768405,0.00215255,93832.0,93830.0,0.0495]
[1735502768566,0.00215255,93832.0,93831.0,0.0795]
[1735502768964,0.00015255,93832.0,93831.0,0.0795]
[1735502769355,0.00215255,93832.0,93831.0,0.0795]
[1735502769562,0.00015255,93832.0,93831.0,0.0795]
[1735502770354,0.00015255,93832.0,93831.0,0.0845]